bitfinex/quotes_SOLUSD_20240628
["timestamp","ask_amount","ask_price","bid_price","bid_amount"]
[1719573472355,20.0,145.6,145.59,15.96]
[1719573472958,6.0515,145.61,145.59,15.96]
[1719573474366,20.0,145.6,145.59,15.96]
[1719573474559,20.0,145.6,145.58,15.96]
[1719573476767,20.0,145.6,145.57,15.96]
[1719573480196,20.0,145.6,145.58,15.96]
[1719573481590,20.0,145.6,145.57,15.96]
[1719573483681,20.0,145.6,145.53,63.84]
[1719573483682,40.55802762,145.66,145.55,16.5778]
[1719573483898,7.08682859,145.65,145.61,15.96]
[1719573484070,7.08682859,145.65,145.62,15.96]
[1719573484270,19.88802762,145.66,145.62,15.96]
[1719573484470,19.88802762,145.66,145.63,15.96]
[1719573485208,19.88802762,145.66,145.62,15.96]
[1719573485392,20.0,145.65,145.62,15.96]
[1719573486588,20.0,145.65,145.55,16.5778]
[1719573486589,20.0,145.65,145.63,15.96]
[1719573486791,20.0,145.65,145.54,6.186]
[1719573486792,3.58612762,145.66,145.64,15.96]
[1719573487013,3.58612762,145.66,145.65,15.96]
[1719573488713,0.8152995,145.71,145.65,15.96]
[1719573488939,0.8152995,145.71,145.67,15.96]
[1719573489084,0.8152995,145.71,145.6,79.2135]
[1719573489291,0.8152995,145.71,145.67,15.96]
[1719573489791,20.8152995,145.71,145.67,15.96]
[1719573490412,20.8152995,145.71,145.66,15.96]
[1719573490614,36.7752995,145.71,145.65,15.96]
[1719573491211,57.4452995,145.71,145.65,15.96]
[1719573492192,36.7752995,145.71,145.65,15.96]
[1719573492592,36.7752995,145.71,145.66,15.96]
[1719573492797,57.4452995,145.71,145.66,15.96]
[1719573493217,57.4452995,145.71,145.65,15.96]
[1719573494109,8.03707903,145.7,145.65,15.96]
[1719573494306,20.0,145.69,145.65,15.96]
[1719573494504,15.96,145.7,145.65,15.96]
[1719573494712,20.0,145.69,145.65,15.96]
[1719573494916,20.8152995,145.71,145.66,15.96]
[1719573495821,0.8152995,145.71,145.66,15.96]
[1719573497630,0.8152995,145.71,145.68,15.96]
[1719573498994,0.8152995,145.71,145.67,15.96]
[1719573500916,0.8152995,145.71,145.66,15.96]
[1719573502743,16.7752995,145.71,145.6,79.2135]
[1719573502921,20.0,145.7,145.66,15.96]
[1719573503970,20.8152995,145.71,145.66,15.96]
[1719573505746,36.7752995,145.71,145.65,15.96]
[1719573506042,15.96,145.7,145.65,15.96]
[1719573506211,20.0,145.69,145.65,15.96]
[1719573507638,0.8152995,145.71,145.67,15.96]
[1719573512653,0.8152995,145.71,145.68,15.96]
[1719573512961,0.8152995,145.71,145.69,15.96]
[1719573513124,0.8152995,145.71,145.66,1.37277694]
[1719573513125,0.8152995,145.71,145.7,15.96]
[1719573514043,0.8152995,145.71,145.67,63.84]
[1719573514236,0.8152995,145.71,145.7,15.96]
[1719573518555,0.8152995,145.71,145.67,63.84]
[1719573518932,0.8152995,145.71,145.69,15.96]
[1719573519138,0.8152995,145.71,145.65,15.395]
[1719573519336,0.8152995,145.71,145.69,15.96]
[1719573519559,0.8152995,145.71,145.7,15.96]
[1719573520540,0.8152995,145.71,145.65,15.395]
[1719573520758,0.8152995,145.71,145.68,15.96]
[1719573521233,0.8152995,145.71,145.7,15.96]
[1719573530132,0.8152995,145.71,145.67,63.84]
[1719573530335,0.8152995,145.71,145.7,15.96]
[1719573535067,0.8152995,145.71,145.63,15.96]
[1719573535271,0.8152995,145.71,145.7,15.96]
[1719573540458,0.8152995,145.71,145.67,15.0223]
[1719573540668,0.8152995,145.71,145.7,15.96]
[1719573542675,0.8152995,145.71,145.67,78.8623]
[1719573542974,0.8152995,145.71,145.7,15.96]
[1719573544079,0.8152995,145.71,145.67,15.0223]
[1719573544375,0.8152995,145.71,145.68,15.96]
[1719573544558,0.8152995,145.71,145.69,15.96]
[1719573544977,0.8152995,145.71,145.7,15.96]
[1719573547447,0.8152995,145.71,145.68,1.37234107]
[1719573547651,0.8152995,145.71,145.7,15.96]
[1719573549459,0.8152995,145.71,145.7,31.5872]
[1719573549974,20.0,145.78,145.7,31.5872]
[1719573550195,6.0766,145.81,145.76,15.96]
[1719573550353,9.9046,145.82,145.76,15.96]
[1719573550552,25.8646,145.82,145.76,15.96]
[1719573551374,17.0300995,145.85,145.77,15.96]
[1719573551575,15.96,145.83,145.78,15.96]
[1719573551757,15.96,145.83,145.77,15.96]
[1719573551960,15.96,145.83,145.74,79.3501]
[1719573552283,45.0,145.84,145.79,15.96]
[1719573553489,20.0,145.83,145.79,15.96]
[1719573553678,20.0,145.83,145.8,15.96]
[1719573553858,45.0,145.84,145.74,85.5843]
[1719573554062,45.0,145.84,145.82,15.96]
[1719573554257,45.0,145.84,145.83,17.33137992]
[1719573554487,10.18621682,145.94,145.83,15.96]
[1719573554657,67.813,145.93,145.88,15.96]
[1719573554853,45.0,145.93,145.87,15.96]
[1719573555052,45.0,145.93,145.82,6.499]
[1719573555053,15.96,145.92,145.82,6.499]
[1719573555285,45.0,145.91,145.83,20.0]
[1719573555587,6.8545,145.89,145.83,20.0]
[1719573555784,45.0,145.88,145.85,15.96]
[1719573555963,45.0,145.88,145.81,15.4433]
[1719573556160,45.0,145.88,145.83,15.96]
[1719573556523,6.856,145.86,145.82,15.96]
[1719573556656,45.0,145.85,145.82,15.96]
[1719573557463,45.0,145.85,145.84,15.96]
[1719573559060,28.3334,145.85,145.84,21.967]
[1719573559385,6.8525,145.94,145.84,57.927]
[1719573559596,6.8525,145.94,145.91,15.96]
[1719573559760,6.8525,145.94,145.84,6.007]
[1719573559966,6.8525,145.94,145.9,15.96]
[1719573560265,6.8525,145.94,145.85,20.0]
[1719573560266,15.96,145.94,145.85,20.0]
[1719573560469,20.0,145.93,145.85,20.0]
[1719573560776,20.0,145.93,145.87,15.96]
[1719573560777,15.96,145.93,145.87,15.96]
[1719573560978,6.8521,145.94,145.9,15.96]
[1719573561299,20.0,145.96,145.9,15.96]
[1719573561300,65.0,145.93,145.9,15.96]
[1719573561586,45.0,145.93,145.89,15.96]
[1719573561962,45.0,145.94,145.92,15.96]
[1719573562166,45.0,145.94,145.93,15.96]
[1719573564004,45.0,145.94,145.91,7.71910537]
[1719573564181,45.0,145.94,145.93,15.96]
[1719573564475,45.0,145.94,145.93,22.844]
[1719573564785,45.0,145.94,145.92,31.61]
[1719573564977,45.0,145.94,145.93,20.0]
[1719573568480,19.36373161,145.94,145.93,21.37014447]
[1719573568795,13.4121,146.04,145.93,21.37014447]
[1719573569005,13.4121,146.04,145.93,20.0]
[1719573569006,6.8492,146.01,145.93,20.0]
[1719573569569,20.0,146.03,145.93,20.0]
[1719573569790,20.0,146.03,145.94,1.36985343]
[1719573570190,6.8484,146.02,145.93,20.0]
[1719573570778,6.8489,146.01,145.93,20.0]
[1719573570979,45.0,146.0,145.93,20.0]
[1719573571906,45.0,146.0,145.92,31.61]
[1719573572378,45.0,146.0,145.93,1.06119411]
[1719573572577,45.0,146.0,145.92,31.61]
[1719573573705,7.6650995,145.99,145.91,6.3488]
[1719573574005,45.0,145.98,145.89,74.655755]
[1719573574305,45.0,145.98,145.9,20.0]
[1719573574489,45.8152995,145.99,145.9,20.0]
[1719573575318,6.8522,145.94,145.86,31.61]
[1719573575522,42.9109,145.98,145.83,256.6]
[1719573575523,6.8536,145.91,145.83,284.060696]
[1719573575683,17.1293,145.95,145.83,27.460696]
[1719573575892,17.1293,145.95,145.82,6.3098]
[1719573576193,65.0,145.94,145.82,33.772817]
[1719573576825,65.0,145.94,145.83,20.0]
[1719573576994,65.0,145.94,145.82,33.772817]
[1719573578401,65.0,145.94,145.83,20.0]
[1719573580119,6.2284,145.93,145.82,20.0]
[1719573580333,65.0,145.92,145.82,20.0]
[1719573581604,45.0,145.92,145.82,20.0]
[1719573581807,45.0,145.92,145.84,31.61]
[1719573582011,45.0,145.92,145.87,31.61]
[1719573582195,45.0,145.92,145.88,21.3705501]
[1719573583906,45.0,145.92,145.9,31.61]
[1719573591427,36.90031175,145.92,145.91,21.3703539]
[1719573591920,36.90031175,145.92,145.91,20.0]
[1719573597110,34.84029392,145.92,145.91,20.0]
[1719573601423,34.84029392,145.92,145.9,20.0]
[1719573601633,34.84029392,145.92,145.9,27.449983]
[1719573602228,34.84029392,145.92,145.88,31.61]
[1719573602421,34.84029392,145.92,145.89,20.0]
[1719573604046,0.8152995,145.99,145.91,31.61]
[1719573604334,3.56492532,146.16,145.98,58.6157]
[1719573604539,6.2172,146.21,146.08,31.61]
[1719573604540,9.78212532,146.21,146.08,31.61]
[1719573604752,31.61,146.2,146.03,31.61]
[1719573605046,22.1861,146.13,146.0,31.61]
[1719573605357,22.1861,146.13,145.99,73.8682]
[1719573605742,22.1861,146.13,146.02,31.61]
[1719573606149,45.0,146.12,146.02,31.61]
[1719573606339,45.0,146.12,146.03,20.0]
[1719573607548,45.0,146.12,145.99,22.2582]
[1719573607856,45.0,146.12,146.0,31.61]
[1719573608150,45.0,146.12,146.01,20.0]
[1719573608844,20.0,146.11,146.01,20.0]
[1719573609034,45.0,146.1,146.01,20.0]
[1719573609625,45.0,146.1,146.0,20.0]
[1719573609929,20.0,146.09,146.0,20.0]
[1719573610248,45.0,146.08,146.0,20.0]
[1719573611561,45.0,146.08,145.99,22.2582]
[1719573611851,26.2715,146.07,145.99,22.2582]
[1719573612054,45.0,146.06,145.99,22.2582]
[1719573612972,45.0,146.06,146.0,20.0]
[1719573614277,45.0,146.06,145.99,22.2582]
[1719573614570,20.0,146.05,145.99,22.2582]
[1719573614775,45.0,146.04,145.99,22.2582]
[1719573615351,45.0,146.04,146.01,31.61]
[1719573616081,0.8152995,146.14,146.03,22.7538]
[1719573616368,0.8152995,146.14,146.06,31.61]
[1719573616592,0.8152995,146.14,146.07,20.0]
[1719573616760,0.8152995,146.14,146.06,31.61]
[1719573616957,0.8152995,146.14,146.03,31.61]
[1719573617158,0.8152995,146.14,146.04,20.0]
[1719573618285,6.6446,146.12,146.04,20.0]
[1719573618458,6.6446,146.12,146.01,51.61]
[1719573618660,45.0,146.11,146.04,31.61]
[1719573620789,45.0,146.11,146.01,31.61]
[1719573620956,65.67,146.11,146.0,27.433056]
[1719573621282,40.67,146.1,145.99,22.2582]
[1719573621879,65.67,146.09,145.99,22.2582]
[1719573622183,20.0,146.08,145.99,22.2582]
[1719573622565,45.0,146.07,145.99,22.2582]
[1719573624275,20.0,146.06,145.99,22.2582]
[1719573624596,6.4761,146.05,145.99,22.2582]
[1719573624766,45.0,146.04,145.99,22.2582]
[1719573625984,60.9184,146.04,145.99,22.2582]
[1719573628378,45.0,146.04,146.0,1.36983532]
[1719573628578,45.0,146.04,145.99,22.2582]
[1719573632683,45.0,146.04,145.99,53.8682]
[1719573632883,45.0,146.04,146.0,20.0]
[1719573635468,45.0,146.04,145.99,31.61]
[1719573635673,45.0,146.04,145.95,48.019]
[1719573635869,45.0,146.04,145.98,31.61]
[1719573637495,45.0,146.04,145.99,21.36936256]
[1719573638291,45.0,146.04,145.99,20.0]
[1719573640410,45.0,146.04,146.01,31.61]
[1719573641085,45.0,146.04,145.99,20.0]
[1719573643077,45.0,146.04,145.98,20.0]
[1719573644013,45.0,146.04,145.97,27.431735]
[1719573644511,45.0,146.04,145.95,31.61]
[1719573645216,45.0,146.04,145.96,20.0]
[1719573645393,6.4948,146.03,145.96,20.0]
[1719573645788,45.0,146.02,145.96,20.0]
[1719573645989,15.1599,146.01,145.94,27.441307]
[1719573646309,45.0,146.0,145.94,27.441307]
[1719573648488,45.0,146.0,145.95,20.0]
[1719573651099,45.0,146.0,145.94,27.441307]
[1719573651305,45.0,146.0,145.89,31.61]
[1719573652599,45.0,146.0,145.9,20.0]
[1719573658201,6.4399,145.99,145.9,20.0]
[1719573658619,45.0,145.98,145.9,20.0]
[1719573660930,16.6464,145.97,145.88,409.84917]
[1719573661225,36.6464,145.97,145.88,382.4]
[1719573661406,45.0,145.96,145.88,382.4]
[1719573665419,45.0,145.96,145.89,31.61]
[1719573665732,45.0,145.96,145.89,51.61]
[1719573666834,45.0,145.96,145.88,382.4]
[1719573667010,45.0,145.96,145.89,20.0]
[1719573667614,45.0,145.96,145.88,382.4]
[1719573668417,45.0,145.96,145.89,20.0]
[1719573668815,45.0,145.96,145.88,382.4]
[1719573669017,6.6464,145.95,145.88,382.4]
[1719573669640,6.6464,145.95,145.86,27.459122]
[1719573669834,6.6464,145.95,145.87,20.0]
[1719573670518,20.0,145.94,145.84,31.61]
[1719573670728,20.0,145.94,145.85,65.0]
[1719573676736,15.0673,145.93,145.85,65.0]
[1719573677631,6.0782,145.92,145.85,45.0]
[1719573677838,20.0,145.91,145.85,45.0]
[1719573681221,6.0782,145.92,145.85,45.0]
[1719573681435,20.0,145.91,145.85,45.0]
[1719573682325,6.0782,145.92,145.85,45.0]
[1719573682851,6.0782,145.92,145.88,15.82]
[1719573683156,21.8982,145.92,145.87,15.82]
[1719573683335,21.8982,145.92,145.86,15.82]
[1719573683537,21.8982,145.92,145.87,15.82]
[1719573688060,6.0782,145.92,145.87,15.82]
[1719573688267,6.0782,145.92,145.89,15.82]
[1719573688563,6.0782,145.92,145.9,15.82]
[1719573688748,6.0782,145.92,145.89,15.82]
[1719573690528,6.0782,145.92,145.85,45.0]
[1719573690737,21.8982,145.92,145.86,15.82]
[1719573692741,6.0782,145.92,145.85,45.0]
[1719573696559,6.0782,145.92,145.86,1.37101161]
[1719573696742,6.0782,145.92,145.85,45.0]
[1719573698854,15.0673,145.93,145.87,31.66]
[1719573699060,15.0673,145.93,145.88,21.37059179]
[1719573699939,45.0,145.96,145.9,31.66]
[1719573700150,15.8835,145.98,145.91,20.0]
[1719573700366,45.0,145.97,145.91,20.0]
[1719573700970,45.0,145.97,145.92,21.689]
[1719573701158,3.86414533,145.97,145.96,31.66]
[1719573701346,15.1543,146.03,145.96,51.66]
[1719573701545,15.1543,146.03,145.97,21.36958146]
[1719573702250,15.1543,146.08,145.97,21.36958146]
[1719573702868,15.1543,146.08,145.98,1.36957918]
[1719573703075,15.1543,146.08,145.97,20.0]
[1719573703076,15.1543,146.08,145.99,33.02938037]
[1719573703373,15.1543,146.08,146.0,20.0]
[1719573705144,6.1663,146.09,146.0,20.0]
[1719573706848,6.1663,146.09,146.02,31.66]
[1719573708489,6.1663,146.09,146.03,20.0]
[1719573711368,6.1663,146.09,146.02,31.66]
[1719573713075,6.1663,146.09,146.03,15.1855]
[1719573713680,6.1663,146.09,146.04,1.36917508]
[1719573713852,6.1663,146.09,146.03,15.1855]
[1719573715075,15.1855,146.11,146.04,1.369106]
[1719573715267,15.1855,146.11,146.05,1.36909107]
[1719573718493,0.8152995,146.14,146.06,22.8866]
[1719573718668,0.8152995,146.14,146.07,20.0]
[1719573718980,0.8152995,146.14,146.08,1.36891997]
[1719573720188,0.8152995,146.14,146.07,20.0]
[1719573720391,0.8152995,146.14,146.08,1.36885487]
[1719573720683,0.8152995,146.14,146.07,20.0]
[1719573721777,0.8152995,146.14,146.03,46.8455]
[1719573721778,0.8152995,146.14,146.03,62.2585]
[1719573721987,22.8679,146.13,146.03,62.2585]
[1719573722164,20.0,146.12,146.03,62.2585]
[1719573722886,22.8679,146.13,146.03,62.2585]
[1719573723075,22.8679,146.13,146.04,20.0]
[1719573723279,22.8679,146.13,146.03,62.2585]
[1719573723280,22.8679,146.13,146.03,15.1855]
[1719573723481,20.0,146.12,146.03,15.1855]
[1719573724074,20.0,146.12,146.04,1.36916641]
[1719573724390,20.0,146.12,146.03,15.1855]
[1719573725379,40.67,146.12,146.03,15.1855]
[1719573725781,40.67,146.12,145.95,288.26]
[1719573725782,81.9,146.12,145.97,16.3614]
[1719573725991,20.67,146.1,145.97,16.3614]
[1719573726193,20.67,146.1,145.97,43.799506]
[1719573726380,20.0,146.09,145.97,43.799506]
[1719573726985,20.0,146.09,145.98,20.0]
[1719573727384,40.67,146.09,145.98,20.0]
[1719573729229,40.67,146.09,145.97,27.438106]
[1719573729383,21.9887,146.08,145.95,31.66]
[1719573729586,20.0,146.07,145.96,20.0]
[1719573729972,40.67,146.07,145.96,20.0]
[1719573730297,40.67,146.07,145.95,31.66]
[1719573730610,20.67,146.05,145.94,27.439951]
[1719573730902,22.7686,146.06,145.93,15.3204]
[1719573731107,20.0,146.04,145.93,15.3204]
[1719573731472,20.0,146.04,145.94,1.36998739]
[1719573731687,40.67,146.05,145.94,28.81535339]
[1719573732811,20.0,146.05,145.94,28.81535339]
[1719573732973,20.0,146.05,145.94,27.445366]
[1719573733176,20.0,146.05,145.95,53.02981995]
[1719573733400,20.0,146.05,145.96,1.36967862]
[1719573734193,20.0,146.05,145.95,51.66]
[1719573734400,22.7686,146.06,145.95,51.66]
[1719573735077,22.7686,146.06,145.98,31.66]
[1719573735277,21.4709,146.1,145.98,31.66]
[1719573736102,7.94756712,146.14,145.99,43.2512]
[1719573736301,7.94756712,146.14,146.01,31.66]
[1719573736513,0.8152995,146.14,146.02,20.0]
[1719573737004,0.8152995,146.14,146.03,1.36916314]
[1719573737600,0.8152995,146.14,146.02,20.0]
[1719573738388,0.8152995,146.14,146.04,31.66]
[1719573738600,0.8152995,146.14,146.05,21.36891045]
[1719573739596,20.8152995,146.14,146.05,20.0]
[1719573740596,20.8152995,146.14,146.04,31.66]
[1719573740895,20.8152995,146.14,146.05,1.3690048]
[1719573741286,20.8152995,146.14,146.04,31.66]
[1719573741607,20.8152995,146.14,146.05,21.4709]
[1719573741808,20.8152995,146.14,146.06,17.66702581]
[1719573742190,0.8152995,146.14,146.06,22.9601]
[1719573742405,0.8152995,146.14,146.07,21.36871456]
[1719573742607,0.8152995,146.14,146.08,1.36871645]
[1719573743900,0.8152995,146.14,146.07,20.0]
[1719573744286,0.8152995,146.14,146.07,21.36891399]
[1719573744809,0.8152995,146.14,146.07,20.0]
[1719573745310,0.8152995,146.14,146.06,22.9601]
[1719573746182,0.8152995,146.14,146.06,16.298]
[1719573746585,0.8152995,146.14,146.07,1.36901422]
[1719573746982,0.8152995,146.14,146.08,1.36902559]
[1719573747794,0.8152995,146.14,146.07,20.0]
[1719573747997,0.8152995,146.14,146.08,1.36867831]
[1719573751801,0.8152995,146.14,146.09,39.51758781]
[1719573752002,0.8152995,146.14,146.1,20.0]
[1719573752201,0.8152995,146.14,146.11,1.36841925]
[1719573753306,0.8152995,146.14,146.1,20.0]
[1719573753506,0.8152995,146.14,146.09,6.4889]
[1719573753896,0.8152995,146.14,146.06,47.958]
[1719573754095,0.8152995,146.14,146.06,16.298]
[1719573754326,0.8152995,146.14,146.07,1.36880747]
[1719573754720,0.8152995,146.14,146.06,16.298]
[1719573755227,0.8152995,146.14,146.07,1.36882858]
[1719573755606,0.8152995,146.14,146.08,1.36882869]
[1719573755797,0.8152995,146.14,146.06,16.298]
[1719573757597,0.8152995,146.14,146.05,21.4709]
[1719573757930,0.8152995,146.14,146.06,1.36897497]
[1719573758503,0.8152995,146.14,146.05,21.4709]
[1719573758817,0.8152995,146.14,146.06,1.3689159]
[1719573759521,0.8152995,146.14,146.06,21.3689159]
[1719573759896,0.8152995,146.14,146.06,1.3689159]
[1719573760212,0.8152995,146.14,146.07,1.36868463]
[1719573760417,0.8152995,146.14,146.08,1.36877857]
[1719573761127,0.8152995,146.14,146.06,20.0]
[1719573763427,0.8152995,146.14,146.07,1.36882672]
[1719573764624,0.8152995,146.14,146.07,33.02882672]
[1719573765121,0.8152995,146.14,146.08,20.0]
[1719573767022,0.8152995,146.14,146.07,31.66]
[1719573767223,0.8152995,146.14,146.05,21.4709]
[1719573767426,0.8152995,146.14,146.06,20.0]
[1719573769314,0.8152995,146.14,146.07,1.36892831]
[1719573769718,0.8152995,146.14,146.06,20.0]
[1719573769915,0.8152995,146.14,146.07,1.36893153]
[1719573770112,0.8152995,146.14,146.08,1.36892683]
[1719573771026,0.8152995,146.14,146.07,1.36892694]
[1719573771224,0.8152995,146.14,146.08,1.36892638]
[1719573771539,0.8152995,146.14,146.06,20.0]
[1719573772228,0.8152995,146.14,146.07,1.36893093]
[1719573772424,0.8152995,146.14,146.08,1.36888865]
[1719573773324,0.8152995,146.14,146.08,21.4709]
[1719573775225,0.8152995,146.14,146.05,20.0]
[1719573775429,0.8152995,146.14,146.06,27.421406]
[1719573775827,22.5722,146.13,146.06,27.421406]
[1719573776131,22.5722,146.13,146.0,31.66]
[1719573776909,22.5722,146.13,146.01,27.428495]
[1719573777226,43.2422,146.13,146.01,47.428495]
[1719573777635,43.2422,146.13,146.01,27.428495]
[1719573777812,6.465,146.11,146.01,27.428495]
[1719573778025,20.0,146.1,146.01,27.428495]
[1719573778338,20.0,146.1,145.98,659.64036149]
[1719573778540,15.3293,146.09,145.98,20.64036149]
[1719573778760,20.0,146.08,145.98,5.58356149]
[1719573778933,20.0,146.08,145.97,59.095025]
[1719573779922,20.0,146.08,145.98,20.0]
[1719573780449,15.1579,146.06,145.97,27.435025]
[1719573780633,20.0,146.05,145.94,16.2507]
[1719573781138,20.0,146.05,145.96,27.440705]
[1719573782328,20.0,146.05,145.93,31.66]
[1719573782641,20.0,146.05,145.94,20.0]
[1719573782842,20.0,146.05,145.94,47.1578]
[1719573784830,20.0,146.05,145.95,1.36999148]
[1719573785026,20.0,146.05,145.96,1.3698166]
[1719573785227,20.0,146.05,145.96,31.66]
[1719573785425,20.0,146.05,145.97,20.0]
[1719573786537,20.0,146.05,145.96,31.66]
[1719573786932,20.0,146.05,145.97,20.0]
[1719573790942,0.09688313,145.99,145.97,20.0]
[1719573791949,0.09688313,145.99,145.98,1.36996371]
[1719573792451,0.09688313,145.99,145.97,20.0]
[1719573798754,0.09688313,145.99,145.98,15.8]
[1719573805364,0.09688313,145.99,145.98,17.16984905]
[1719573805566,0.09688313,145.99,145.98,15.8]
[1719573815684,0.09688313,145.99,145.91,4.6941366]
[1719573815855,0.09688313,145.99,145.96,15.8]
[1719573816670,0.09688313,145.99,145.97,15.8]
[1719573817462,0.09688313,145.99,145.95,16.3399]
[1719573817977,0.09688313,145.99,145.95,32.1399]
[1719573818174,0.09688313,145.99,145.96,15.8]
[1719573818859,0.09688313,145.99,145.97,15.8]
[1719573820676,0.09688313,145.99,145.96,15.8]
[1719573823162,0.09688313,145.99,145.97,15.8]
[1719573824775,0.09688313,145.99,145.91,20.39547365]
[1719573824981,0.09688313,145.99,145.92,20.0]
[1719573825283,0.09688313,145.99,145.96,15.8]
[1719573825672,0.09688313,145.99,145.92,20.0]
[1719573825982,0.09688313,145.99,145.96,15.8]
[1719573826357,0.09688313,145.99,145.95,15.8]
[1719573826551,15.89688313,145.99,145.94,15.8]
[1719573826859,15.89688313,145.99,145.93,15.8]
[1719573827470,0.09688313,145.99,145.95,15.8]
[1719573827660,0.09688313,145.99,145.96,15.8]
[1719573828256,0.09688313,145.99,145.95,15.8]
[1719573828476,0.09688313,145.99,145.98,15.8]
[1719573828674,22.1188,146.06,145.98,17.16966859]
[1719573828866,22.1188,146.06,146.03,15.8]
[1719573829778,20.0,146.05,145.94,15.8474]
[1719573830076,20.0,146.05,146.01,15.8]
[1719573830489,20.0,146.05,145.95,83.2]
[1719573830670,20.0,146.05,146.02,15.8]
[1719573830870,22.1188,146.06,146.03,15.8]
[1719573831071,22.1188,146.06,146.04,15.8]
[1719573832771,22.1188,146.06,146.03,15.8]
[1719573833886,22.1188,146.06,146.02,15.8]
[1719573834860,22.1188,146.06,146.03,15.8]
[1719573835963,22.1188,146.06,145.99,22.1188]
[1719573836183,22.1188,146.06,146.03,15.8]
[1719573836691,22.1188,146.06,145.96,5.40452338]
[1719573836987,22.1188,146.06,146.03,15.8]
[1719573837563,22.1188,146.06,145.97,49.0028]
[1719573837564,22.1188,146.06,145.97,42.1188]
[1719573837866,7.54884696,146.05,146.02,15.8]
[1719573838067,22.1188,146.06,146.02,15.8]
[1719573838489,7.54884149,146.05,146.02,15.8]
[1719573838689,22.1188,146.06,146.02,15.8]
[1719573838880,7.54884943,146.05,146.02,15.8]
[1719573839194,22.1188,146.06,146.02,15.8]
[1719573839399,7.54890416,146.05,146.02,15.8]
[1719573839693,22.1188,146.06,146.02,15.8]
[1719573839902,7.54890416,146.05,146.02,15.8]
[1719573840085,22.1188,146.06,146.02,15.8]
[1719573840271,7.54890416,146.05,146.02,15.8]
[1719573840487,22.1188,146.06,146.02,15.8]
[1719573840687,7.54890306,146.05,146.03,15.8]
[1719573840893,22.1188,146.06,146.03,15.8]
[1719573841277,7.54890107,146.05,146.03,15.8]
[1719573841478,22.1188,146.06,146.03,15.8]
[1719573841780,7.54890107,146.05,146.03,15.8]
[1719573841980,22.1188,146.06,146.03,15.8]
[1719573842182,7.54889532,146.05,146.03,15.8]
[1719573842380,22.1188,146.06,146.02,15.8]
[1719573842581,7.54889622,146.05,146.02,15.8]
[1719573842782,22.1188,146.06,146.02,15.8]
[1719573843090,7.54890416,146.05,146.02,15.8]
[1719573843402,22.1188,146.06,146.02,15.8]
[1719573843593,7.54890416,146.05,146.02,15.8]
[1719573843786,22.1188,146.06,146.02,15.8]
[1719573843985,7.54890306,146.05,146.02,15.8]
[1719573844187,22.1188,146.06,146.02,15.8]
[1719573844381,7.54890416,146.05,146.02,15.8]
[1719573844591,22.1188,146.06,145.97,22.1188]
[1719573844780,27.54890416,146.05,146.01,15.8]
[1719573844982,7.54890416,146.04,146.01,15.8]
[1719573846012,20.0,146.03,145.97,22.1188]
[1719573846187,35.8,146.03,145.98,15.8]